[Event "*** Titled Tuesday Blitz"]
[Site "Chess.com"]
[Date "2021.03.30"]
[Round "1"]
[White "KarateBaby"]
[Black "chigorin28"]
[Result "0-1"]
[WhiteElo "2304"]
[BlackElo "2603"]
[TimeControl "180+1"]
[EndTime "10:01:55 PDT"]
[Termination "chigorin28 won by resignation"]

1. Nf3 {[%clk 0:03:00.9]} 1... b6 {[%clk 0:02:56.6]} 2. c4 {[%clk 0:02:56]} 2...
Bb7 {[%clk 0:02:56.8]} 3. Nc3 {[%clk 0:02:56.4]} 3... Nf6 {[%clk 0:02:53.4]} 4.
g3 {[%clk 0:02:46.1]} 4... e6 {[%clk 0:02:53.8]} 5. Bg2 {[%clk 0:02:46.2]} 5...
d5 {[%clk 0:02:53.7]} 6. e3 {[%clk 0:02:44.8]} 6... dxc4 {[%clk 0:02:50.6]} 7.
O-O {[%clk 0:02:44]} 7... a6 {[%clk 0:02:46.9]} 8. b3 {[%clk 0:02:43.7]} 8...
cxb3 {[%clk 0:02:44.7]} 9. Qxb3 {[%clk 0:02:44.6]} 9... Be7 {[%clk 0:02:39.6]}
10. d4 {[%clk 0:02:35.8]} 10... O-O {[%clk 0:02:39.3]} 11. a4 {[%clk 0:02:22.3]}
11... Nc6 {[%clk 0:02:39.2]} 12. Ne5 {[%clk 0:02:13.6]} 12... Na5 {[%clk
0:02:36.8]} 13. Bxb7 {[%clk 0:02:14]} 13... Nxb3 {[%clk 0:02:34.4]} 0-1

[Event "*** Titled Tuesday Blitz"]
[Site "Chess.com"]
[Date "2021.03.30"]
[Round "1"]
[White "Eliwood44"]
[Black "chess960now"]
[Result "1-0"]
[WhiteElo "2514"]
[BlackElo "2171"]
[TimeControl "180+1"]
[EndTime "10:02:27 PDT"]
[Termination "Eliwood44 won by resignation"]

1. d4 {[%clk 0:03:00.9]} 1... d6 {[%clk 0:02:57.9]} 2. Nf3 {[%clk 0:03:00.2]}
2... Nd7 {[%clk 0:02:57.7]} 3. e4 {[%clk 0:02:59.7]} 3... e5 {[%clk 0:02:57.4]}
4. Nc3 {[%clk 0:03:00.1]} 4... Ngf6 {[%clk 0:02:55.2]} 5. Bc4 {[%clk 0:02:59.1]}
5... Be7 {[%clk 0:02:54.9]} 6. O-O {[%clk 0:02:57.2]} 6... O-O {[%clk
0:02:53.1]} 7. Re1 {[%clk 0:02:57.4]} 7... c6 {[%clk 0:02:51.3]} 8. a4 {[%clk
0:02:57.4]} 8... Qc7 {[%clk 0:02:49.7]} 9. h3 {[%clk 0:02:56.1]} 9... b6 {[%clk
0:02:39.9]} 10. Ba2 {[%clk 0:02:49.2]} 10... Bb7 {[%clk 0:02:37.1]} 11. Nh4
{[%clk 0:02:44.7]} 11... Rfd8 {[%clk 0:02:14.7]} 12. Nf5 {[%clk 0:02:40.5]}
12... Bf8 {[%clk 0:02:14.5]} 13. Be3 {[%clk 0:02:37.4]} 13... a6 {[%clk
0:02:10]} 14. Qf3 {[%clk 0:02:35.3]} 14... exd4 {[%clk 0:01:54.5]} 15. Bxd4
{[%clk 0:02:32.9]} 15... Ne5 {[%clk 0:01:54.1]} 16. Bxe5 {[%clk 0:02:32.4]}
16... dxe5 {[%clk 0:01:53.9]} 17. Nh6+ {[%clk 0:02:31.8]} 17... Kh8 {[%clk
0:01:53.6]} 18. Nxf7+ {[%clk 0:02:31.3]} 1-0

[Event "*** Titled Tuesday Blitz"]
[Site "Chess.com"]
[Date "2021.03.30"]
[Round "1"]
[White "Ermito2020"]
[Black "Nachsueb"]
[Result "1-0"]
[WhiteElo "2516"]
[BlackElo "2173"]
[TimeControl "180+1"]
[EndTime "10:03:17 PDT"]
[Termination "Ermito2020 won by resignation"]

1. e4 {[%clk 0:03:00.9]} 1... c5 {[%clk 0:03:00]} 2. Nf3 {[%clk 0:03:00.5]} 2...
e6 {[%clk 0:03:00.1]} 3. d4 {[%clk 0:03:00.4]} 3... cxd4 {[%clk 0:03:01]} 4.
Nxd4 {[%clk 0:03:01.3]} 4... Nc6 {[%clk 0:03:01.7]} 5. Nc3 {[%clk 0:02:58.3]}
5... Qc7 {[%clk 0:03:02]} 6. Be3 {[%clk 0:02:57.5]} 6... a6 {[%clk 0:03:01.8]}
7. Qf3 {[%clk 0:02:57.6]} 7... d6 {[%clk 0:03:00.2]} 8. O-O-O {[%clk 0:02:55.5]}
8... Bd7 {[%clk 0:03:00.6]} 9. Qg3 {[%clk 0:02:55.3]} 9... Nf6 {[%clk
0:03:00.2]} 10. f4 {[%clk 0:02:54.9]} 10... b5 {[%clk 0:02:51.2]} 11. Bxb5
{[%clk 0:02:29.7]} 11... axb5 {[%clk 0:02:49.1]} 12. Ndxb5 {[%clk 0:02:30.5]}
12... Qb8 {[%clk 0:02:37.2]} 13. Nxd6+ {[%clk 0:02:23.3]} 13... Bxd6 {[%clk
0:02:38.1]} 14. Qxg7 {[%clk 0:02:22.6]} 14... Ke7 {[%clk 0:02:32.1]} 15. e5
{[%clk 0:02:22.4]} 15... Nxe5 {[%clk 0:02:30.1]} 16. fxe5 {[%clk 0:02:20.4]}
16... Bxe5 {[%clk 0:02:30.4]} 17. Bc5+ {[%clk 0:02:20]} 17... Kd8 {[%clk
0:02:18.6]} 18. Qxh8+ {[%clk 0:02:19.7]} 18... Kc7 {[%clk 0:02:18.9]} 19. Qxb8+
{[%clk 0:02:18.1]} 19... Rxb8 {[%clk 0:02:12.7]} 20. Rhf1 {[%clk 0:02:08.1]}
20... Rg8 {[%clk 0:02:01.5]} 21. g3 {[%clk 0:01:58.5]} 21... Bc6 {[%clk
0:02:01.6]} 22. Bd4 {[%clk 0:01:56.4]} 1-0

[Event "*** Titled Tuesday Blitz"]
[Site "Chess.com"]
[Date "2021.03.30"]
[Round "1"]
[White "karwowskikacper"]
[Black "Alexsur1981"]
[Result "0-1"]
[WhiteElo "2443"]
[BlackElo "2858"]
[TimeControl "180+1"]
[EndTime "10:03:23 PDT"]
[Termination "Alexsur1981 won by resignation"]

1. e4 {[%clk 0:02:59.3]} 1... c5 {[%clk 0:02:59.2]} 2. Nf3 {[%clk 0:02:58.5]}
2... e6 {[%clk 0:02:59.2]} 3. c3 {[%clk 0:02:54.8]} 3... Nc6 {[%clk 0:02:57.6]}
4. d4 {[%clk 0:02:47.2]} 4... d5 {[%clk 0:02:57.5]} 5. exd5 {[%clk 0:02:46.3]}
5... exd5 {[%clk 0:02:58.4]} 6. Bb5 {[%clk 0:02:46.2]} 6... Bd6 {[%clk
0:02:51.5]} 7. dxc5 {[%clk 0:02:41.5]} 7... Bxc5 {[%clk 0:02:52.2]} 8. O-O
{[%clk 0:02:40.7]} 8... Ne7 {[%clk 0:02:52]} 9. Nbd2 {[%clk 0:02:39.3]} 9... O-O
{[%clk 0:02:52.1]} 10. Nb3 {[%clk 0:02:39.4]} 10... Bb6 {[%clk 0:02:52.3]} 11.
Bf4 {[%clk 0:02:37.8]} 11... Bg4 {[%clk 0:02:50.5]} 12. h3 {[%clk 0:02:31.2]}
12... Bh5 {[%clk 0:02:49.3]} 13. Qd3 {[%clk 0:02:06.9]} 13... a6 {[%clk
0:02:40.2]} 14. Bxc6 {[%clk 0:02:06.5]} 14... bxc6 {[%clk 0:02:34.9]} 15. Rfe1
{[%clk 0:01:50.2]} 15... c5 {[%clk 0:02:32.7]} 16. Qe2 {[%clk 0:01:21.8]} 16...
Nc6 {[%clk 0:02:31.2]} 17. g4 {[%clk 0:01:15.5]} 17... Bg6 {[%clk 0:02:30.6]}
18. Rad1 {[%clk 0:01:16.1]} 18... d4 {[%clk 0:02:28.6]} 19. Nh4 {[%clk
0:01:06.1]} 19... Qxh4 {[%clk 0:02:27.2]} 0-1

[Event "*** Titled Tuesday Blitz"]
[Site "Chess.com"]
[Date "2021.03.30"]
[Round "1"]
[White "kikydu96"]
[Black "lukazz029"]
[Result "0-1"]
[WhiteElo "2495"]
[BlackElo "2164"]
[TimeControl "180+1"]
[EndTime "10:03:33 PDT"]
[Termination "lukazz029 won by resignation"]

1. e4 {[%clk 0:02:57]} 1... c5 {[%clk 0:02:59.9]} 2. Nf3 {[%clk 0:02:56.3]} 2...
d6 {[%clk 0:02:59.4]} 3. d4 {[%clk 0:02:41.9]} 3... cxd4 {[%clk 0:03:00.3]} 4.
Nxd4 {[%clk 0:02:42.6]} 4... Nf6 {[%clk 0:02:59]} 5. Nc3 {[%clk 0:02:42.9]} 5...
a6 {[%clk 0:02:57.2]} 6. a3 {[%clk 0:02:41.5]} 6... e6 {[%clk 0:02:56.7]} 7. g4
{[%clk 0:02:21.6]} 7... Qc7 {[%clk 0:02:51.7]} 8. g5 {[%clk 0:02:20.7]} 8...
Nfd7 {[%clk 0:02:50.2]} 9. h4 {[%clk 0:02:19.3]} 9... Nc6 {[%clk 0:02:50.1]} 10.
Be3 {[%clk 0:02:19]} 10... Be7 {[%clk 0:02:47.4]} 11. Be2 {[%clk 0:02:18.1]}
11... Rb8 {[%clk 0:02:42.3]} 12. Qd2 {[%clk 0:01:58.4]} 12... b5 {[%clk
0:02:40]} 13. O-O-O {[%clk 0:01:55.1]} 13... Nce5 {[%clk 0:02:36.9]} 14. f4
{[%clk 0:01:50.1]} 14... Nc4 {[%clk 0:02:34.8]} 15. Bxc4 {[%clk 0:01:50.3]}
15... bxc4 {[%clk 0:02:34.6]} 16. h5 {[%clk 0:01:47.8]} 16... Qb7 {[%clk
0:02:30]} 17. Na4 {[%clk 0:01:33]} 17... Nc5 {[%clk 0:02:28.8]} 18. Qa5 {[%clk
0:01:16]} 18... Bd8 {[%clk 0:02:09.6]} 19. Nxc5 {[%clk 0:01:13.7]} 19... Qxb2+
{[%clk 0:02:07.2]} 0-1

[Event "*** Titled Tuesday Blitz"]
[Site "Chess.com"]
[Date "2021.03.30"]
[Round "1"]
[White "Grineva_Marianna"]
[Black "Brave_spirit12"]
[Result "0-1"]
[WhiteElo "2271"]
[BlackElo "2570"]
[TimeControl "180+1"]
[EndTime "10:03:35 PDT"]
[Termination "Brave_spirit12 won by resignation"]

1. e4 {[%clk 0:02:59.1]} 1... e6 {[%clk 0:02:53.8]} 2. d4 {[%clk 0:02:49.8]}
2... d5 {[%clk 0:02:50.1]} 3. Nd2 {[%clk 0:02:49.9]} 3... c5 {[%clk 0:02:49.1]}
4. Ngf3 {[%clk 0:02:49.1]} 4... Nc6 {[%clk 0:02:47.9]} 5. exd5 {[%clk
0:02:48.1]} 5... exd5 {[%clk 0:02:48.8]} 6. Bb5 {[%clk 0:02:46.5]} 6... Bd6
{[%clk 0:02:47.5]} 7. O-O {[%clk 0:02:46.4]} 7... Ne7 {[%clk 0:02:47]} 8. dxc5
{[%clk 0:02:46.7]} 8... Bxc5 {[%clk 0:02:47.9]} 9. Nb3 {[%clk 0:02:46.8]} 9...
Bd6 {[%clk 0:02:47.8]} 10. c3 {[%clk 0:02:47]} 10... O-O {[%clk 0:02:45.4]} 11.
Re1 {[%clk 0:02:39.3]} 11... Bg4 {[%clk 0:02:42.6]} 12. h3 {[%clk 0:02:38.1]}
12... Bh5 {[%clk 0:02:40.3]} 13. Nbd4 {[%clk 0:02:29.7]} 13... Nxd4 {[%clk
0:02:38.7]} 14. cxd4 {[%clk 0:02:26.6]} 14... Nc6 {[%clk 0:02:37.8]} 15. Be3
{[%clk 0:02:24.8]} 15... Qb6 {[%clk 0:02:34.5]} 16. Bd3 {[%clk 0:02:19.4]} 16...
Rae8 {[%clk 0:02:24.2]} 17. g4 {[%clk 0:01:55.5]} 17... Bg6 {[%clk 0:02:22]} 18.
Ne5 {[%clk 0:01:55.7]} 18... Bxe5 {[%clk 0:02:16]} 19. dxe5 {[%clk 0:01:55.1]}
19... d4 {[%clk 0:02:11.1]} 20. Bf4 {[%clk 0:01:52]} 20... Qxb2 {[%clk
0:02:04.8]} 21. Rb1 {[%clk 0:01:49.4]} 21... Qc3 {[%clk 0:01:58.9]} 22. Rb3
{[%clk 0:01:43.4]} 22... Qa5 {[%clk 0:01:52.6]} 23. Rb6 {[%clk 0:01:42.8]} 23...
axb6 {[%clk 0:01:51.4]} 0-1

[Event "*** Titled Tuesday Blitz"]
[Site "Chess.com"]
[Date "2021.03.30"]
[Round "1"]
[White "petincash"]
[Black "Pelopidass"]
[Result "1-0"]
[WhiteElo "2315"]
[BlackElo "2564"]
[TimeControl "180+1"]
[EndTime "10:03:44 PDT"]
[Termination "petincash won by resignation"]

1. e4 {[%clk 0:03:00.6]} 1... c5 {[%clk 0:03:00]} 2. Nf3 {[%clk 0:03:00]} 2...
d6 {[%clk 0:03:00.5]} 3. Nc3 {[%clk 0:02:59.8]} 3... Nf6 {[%clk 0:03:00.7]} 4.
d4 {[%clk 0:03:00]} 4... cxd4 {[%clk 0:03:01.6]} 5. Nxd4 {[%clk 0:03:00.4]} 5...
a6 {[%clk 0:03:02.1]} 6. g3 {[%clk 0:03:00.3]} 6... e5 {[%clk 0:03:00.9]} 7.
Nde2 {[%clk 0:02:58.8]} 7... Be7 {[%clk 0:02:59.7]} 8. Bg2 {[%clk 0:02:57.8]}
8... O-O {[%clk 0:02:56.9]} 9. O-O {[%clk 0:02:55.7]} 9... b5 {[%clk 0:02:57.4]}
10. a4 {[%clk 0:02:53.7]} 10... b4 {[%clk 0:02:56.5]} 11. Nd5 {[%clk 0:02:53.5]}
11... Nxd5 {[%clk 0:02:48.8]} 12. Qxd5 {[%clk 0:02:53.5]} 12... Ra7 {[%clk
0:02:46.2]} 13. Be3 {[%clk 0:02:47.5]} 13... Be6 {[%clk 0:02:46.3]} 14. Qd2
{[%clk 0:02:30.4]} 14... Rb7 {[%clk 0:02:45.1]} 15. a5 {[%clk 0:02:25.8]} 15...
Nd7 {[%clk 0:02:38.6]} 16. f4 {[%clk 0:02:21.7]} 16... Qc7 {[%clk 0:02:31.8]}
17. b3 {[%clk 0:02:02.5]} 17... Rc8 {[%clk 0:02:28.1]} 18. f5 {[%clk 0:01:51.9]}
18... Qxc2 {[%clk 0:02:22]} 19. fxe6 {[%clk 0:01:50.6]} 19... Qxd2 {[%clk
0:02:21.5]} 20. Bxd2 {[%clk 0:01:44.7]} 20... fxe6 {[%clk 0:02:19.8]} 21. Bh3
{[%clk 0:01:37.8]} 21... Nc5 {[%clk 0:02:19.9]} 22. Rac1 {[%clk 0:01:31.2]}
22... Rd8 {[%clk 0:02:12.5]} 23. Be3 {[%clk 0:01:19.8]} 23... Nxb3 {[%clk
0:02:05.1]} 24. Bxe6+ {[%clk 0:01:19.5]} 24... Kh8 {[%clk 0:02:02.8]} 25. Bxb3
{[%clk 0:01:19.4]} 1-0

[Event "*** Titled Tuesday Blitz"]
[Site "Chess.com"]
[Date "2021.03.30"]
[Round "1"]
[White "Evgeny81"]
[Black "McCarthyStone"]
[Result "1-0"]
[WhiteElo "2771"]
[BlackElo "2411"]
[TimeControl "180+1"]
[EndTime "10:03:49 PDT"]
[Termination "Evgeny81 won by resignation"]

1. e4 {[%clk 0:03:00.9]} 1... d6 {[%clk 0:02:58.3]} 2. d4 {[%clk 0:03:00.3]}
2... Nf6 {[%clk 0:02:58.9]} 3. Nc3 {[%clk 0:03:00.4]} 3... Nc6 {[%clk
0:02:59.5]} 4. Nf3 {[%clk 0:02:59.6]} 4... Bg4 {[%clk 0:02:56.7]} 5. Be2 {[%clk
0:03:00]} 5... e5 {[%clk 0:02:55.7]} 6. d5 {[%clk 0:02:58.9]} 6... Ne7 {[%clk
0:02:54.3]} 7. Be3 {[%clk 0:02:57]} 7... Ng6 {[%clk 0:02:50.6]} 8. Nd2 {[%clk
0:02:53.7]} 8... Bd7 {[%clk 0:02:25.2]} 9. h4 {[%clk 0:02:52.8]} 9... h5 {[%clk
0:02:21.7]} 10. Bg5 {[%clk 0:02:38.6]} 10... Be7 {[%clk 0:02:17.4]} 11. Nf3
{[%clk 0:02:35.1]} 11... c6 {[%clk 0:02:10]} 12. Qd2 {[%clk 0:02:32.1]} 12...
cxd5 {[%clk 0:02:01.6]} 13. Bxf6 {[%clk 0:02:32.2]} 13... Bxf6 {[%clk
0:01:55.7]} 14. Nxd5 {[%clk 0:02:32.5]} 14... Bc6 {[%clk 0:01:55.9]} 15. g3
{[%clk 0:02:26.6]} 15... Rc8 {[%clk 0:01:49.7]} 16. O-O-O {[%clk 0:02:25.8]}
16... Bxd5 {[%clk 0:01:29.9]} 17. Qxd5 {[%clk 0:02:24.9]} 17... Be7 {[%clk
0:01:29.5]} 18. Bb5+ {[%clk 0:02:19.5]} 18... Kf8 {[%clk 0:01:29]} 19. Bc4
{[%clk 0:02:17.7]} 19... Qe8 {[%clk 0:01:26.8]} 20. Bb3 {[%clk 0:02:17.5]} 20...
b6 {[%clk 0:01:23.1]} 21. Ng5 {[%clk 0:02:15.3]} 21... Rc5 {[%clk 0:01:21.9]}
22. Qxf7+ {[%clk 0:02:11.1]} 22... Qxf7 {[%clk 0:01:21]} 23. Nxf7 {[%clk
0:02:12]} 23... Rh7 {[%clk 0:01:21.6]} 24. Nxd6 {[%clk 0:02:10.7]} 24... Bxd6
{[%clk 0:01:22.5]} 25. Rxd6 {[%clk 0:02:11.1]} 25... Ke7 {[%clk 0:01:21.2]} 26.
Rxg6 {[%clk 0:02:10.5]} 1-0

[Event "*** Titled Tuesday Blitz"]
[Site "Chess.com"]
[Date "2021.03.30"]
[Round "1"]
[White "kingofthenil"]
[Black "AsaHoffmann"]
[Result "1-0"]
[WhiteElo "2762"]
[BlackElo "2408"]
[TimeControl "180+1"]
[EndTime "10:03:51 PDT"]
[Termination "kingofthenil won by resignation"]

1. e4 {[%clk 0:02:59.4]} 1... d6 {[%clk 0:02:58]} 2. d4 {[%clk 0:02:59.5]} 2...
Nf6 {[%clk 0:02:54.1]} 3. Bd3 {[%clk 0:02:58.2]} 3... e5 {[%clk 0:02:47.9]} 4.
c3 {[%clk 0:02:56.8]} 4... Nc6 {[%clk 0:02:46.5]} 5. Nf3 {[%clk 0:02:55.9]} 5...
Bg4 {[%clk 0:02:44]} 6. d5 {[%clk 0:02:51.8]} 6... Ne7 {[%clk 0:02:43.4]} 7. c4
{[%clk 0:02:51.5]} 7... Ng6 {[%clk 0:02:40.8]} 8. h3 {[%clk 0:02:50.8]} 8...
Bxf3 {[%clk 0:02:40.4]} 9. Qxf3 {[%clk 0:02:51.7]} 9... Be7 {[%clk 0:02:39.9]}
10. g3 {[%clk 0:02:50.9]} 10... Nd7 {[%clk 0:02:39.4]} 11. Nc3 {[%clk
0:02:50.6]} 11... a5 {[%clk 0:02:37.5]} 12. h4 {[%clk 0:02:50.4]} 12... h6
{[%clk 0:02:32.5]} 13. Be3 {[%clk 0:02:47.6]} 13... b6 {[%clk 0:02:31.7]} 14. a3
{[%clk 0:02:44.4]} 14... Nc5 {[%clk 0:02:30.4]} 15. Bc2 {[%clk 0:02:44.7]} 15...
Bf6 {[%clk 0:02:21.7]} 16. Ke2 {[%clk 0:02:41.9]} 16... O-O {[%clk 0:02:18.2]}
17. Qg4 {[%clk 0:02:34.1]} 17... Qc8 {[%clk 0:02:15.9]} 18. Qxc8 {[%clk
0:02:33]} 18... Rfxc8 {[%clk 0:02:13.9]} 19. b4 {[%clk 0:02:32.4]} 19... Nd7
{[%clk 0:02:07.9]} 20. Ba4 {[%clk 0:02:27.7]} 20... Ngf8 {[%clk 0:02:03.4]} 21.
Bc6 {[%clk 0:02:27.4]} 21... Rab8 {[%clk 0:01:56.3]} 22. Rab1 {[%clk 0:02:17.5]}
22... Be7 {[%clk 0:01:46.7]} 23. bxa5 {[%clk 0:02:13.5]} 23... bxa5 {[%clk
0:01:45.6]} 24. Ba7 {[%clk 0:02:14.4]} 24... Ra8 {[%clk 0:01:38.1]} 25. Bxa8
{[%clk 0:02:12.2]} 25... Rxa8 {[%clk 0:01:37.8]} 26. Be3 {[%clk 0:02:13.1]}
26... Kh7 {[%clk 0:01:23.8]} 27. Rb7 {[%clk 0:02:11.8]} 27... Bd8 {[%clk
0:01:22.9]} 28. Nb5 {[%clk 0:02:11.6]} 28... Nb6 {[%clk 0:01:16.9]} 29. Bxb6
{[%clk 0:02:10.6]} 29... cxb6 {[%clk 0:01:16.4]} 30. Nxd6 {[%clk 0:02:11.3]} 1-0

[Event "*** Titled Tuesday Blitz"]
[Site "Chess.com"]
[Date "2021.03.30"]
[Round "1"]
[White "Romadk"]
[Black "KrolPawel92OnTwitch"]
[Result "0-1"]
[WhiteElo "2318"]
[BlackElo "2617"]
[TimeControl "180+1"]
[EndTime "10:03:58 PDT"]
[Termination "KrolPawel92OnTwitch won by resignation"]

1. d4 {[%clk 0:02:54.5]} 1... Nf6 {[%clk 0:02:59.4]} 2. Nf3 {[%clk 0:02:54]}
2... b6 {[%clk 0:02:59.1]} 3. g3 {[%clk 0:02:52.8]} 3... Bb7 {[%clk 0:02:59.4]}
4. Bg2 {[%clk 0:02:53]} 4... e6 {[%clk 0:02:59.2]} 5. O-O {[%clk 0:02:53.4]}
5... Be7 {[%clk 0:02:58.7]} 6. c4 {[%clk 0:02:53.1]} 6... O-O {[%clk 0:02:58]}
7. Nc3 {[%clk 0:02:53.3]} 7... d5 {[%clk 0:02:58]} 8. cxd5 {[%clk 0:01:56.3]}
8... exd5 {[%clk 0:02:35.4]} 9. Qc2 {[%clk 0:01:56]} 9... Nc6 {[%clk 0:02:35.2]}
10. Rd1 {[%clk 0:01:55]} 10... Re8 {[%clk 0:02:34.2]} 11. Bf4 {[%clk 0:01:53.7]}
11... Rc8 {[%clk 0:02:33.1]} 12. a3 {[%clk 0:01:52.9]} 12... Na5 {[%clk
0:02:32.7]} 13. Rac1 {[%clk 0:01:52.2]} 13... Bf8 {[%clk 0:02:30]} 14. Qf5
{[%clk 0:01:51.7]} 14... g6 {[%clk 0:02:28.7]} 15. Qd3 {[%clk 0:01:49.7]} 15...
Nc4 {[%clk 0:02:27.1]} 16. Ne5 {[%clk 0:01:46.9]} 16... Nxb2 {[%clk 0:02:20.2]}
17. Qf3 {[%clk 0:01:35.2]} 17... Nxd1 {[%clk 0:02:20.2]} 18. Bg5 {[%clk
0:01:31.8]} 18... Bg7 {[%clk 0:02:16.9]} 19. Ng4 {[%clk 0:01:30.5]} 19... Nxc3
{[%clk 0:02:14]} 20. Nxf6+ {[%clk 0:01:30.3]} 20... Bxf6 {[%clk 0:02:14.1]} 21.
Bxf6 {[%clk 0:01:31.2]} 21... Nxe2+ {[%clk 0:02:14.5]} 22. Kh1 {[%clk 0:01:30]}
22... Qxf6 {[%clk 0:02:06.8]} 23. Qxf6 {[%clk 0:01:27.7]} 23... Nxc1 {[%clk
0:02:05.8]} 24. h3 {[%clk 0:01:26.3]} 24... Re6 {[%clk 0:01:59.2]} 25. Qf4
{[%clk 0:01:24.1]} 25... Ne2 {[%clk 0:01:58.9]} 26. Qd2 {[%clk 0:01:23.2]} 26...
c5 {[%clk 0:01:57.6]} 27. dxc5 {[%clk 0:01:22.4]} 27... bxc5 {[%clk 0:01:58.5]}
28. Bxd5 {[%clk 0:01:22.7]} 28... Rd8 {[%clk 0:01:57.1]} 0-1

[Event "*** Titled Tuesday Blitz"]
[Site "Chess.com"]
[Date "2021.03.30"]
[Round "1"]
[White "aa175"]
[Black "zurzan"]
[Result "1-0"]
[WhiteElo "2485"]
[BlackElo "1954"]
[TimeControl "180+1"]
[EndTime "10:04:01 PDT"]
[Termination "aa175 won by resignation"]

1. d4 {[%clk 0:03:00.9]} 1... d6 {[%clk 0:02:59.3]} 2. Nf3 {[%clk 0:03:00.8]}
2... Nf6 {[%clk 0:02:57.3]} 3. Bf4 {[%clk 0:03:01.1]} 3... g6 {[%clk 0:02:56.4]}
4. e3 {[%clk 0:03:01.7]} 4... Bg7 {[%clk 0:02:56.4]} 5. Be2 {[%clk 0:03:02.2]}
5... c5 {[%clk 0:02:55.9]} 6. O-O {[%clk 0:03:02.2]} 6... cxd4 {[%clk
0:02:55.6]} 7. exd4 {[%clk 0:03:03.1]} 7... O-O {[%clk 0:02:55.1]} 8. Nbd2
{[%clk 0:03:02.1]} 8... b6 {[%clk 0:02:49.3]} 9. c3 {[%clk 0:03:02]} 9... Bb7
{[%clk 0:02:49.4]} 10. a4 {[%clk 0:03:01.9]} 10... Nbd7 {[%clk 0:02:40.2]} 11.
Nc4 {[%clk 0:03:00.3]} 11... Rc8 {[%clk 0:02:29.8]} 12. Ne3 {[%clk 0:02:46.7]}
12... Nh5 {[%clk 0:02:27.4]} 13. Bg5 {[%clk 0:02:46.2]} 13... h6 {[%clk
0:02:24.9]} 14. Bh4 {[%clk 0:02:46.4]} 14... Nf4 {[%clk 0:02:21.6]} 15. Nd2
{[%clk 0:02:18.8]} 15... Nxe2+ {[%clk 0:02:19]} 16. Qxe2 {[%clk 0:02:19.7]}
16... Nf6 {[%clk 0:02:10.1]} 17. f4 {[%clk 0:02:09.5]} 17... e6 {[%clk
0:01:38.9]} 18. a5 {[%clk 0:01:59.1]} 18... bxa5 {[%clk 0:01:34.4]} 19. Qb5
{[%clk 0:01:53.1]} 19... Qc7 {[%clk 0:01:28.4]} 20. Qxa5 {[%clk 0:01:42.8]}
20... Qc6 {[%clk 0:01:27.6]} 21. Bxf6 {[%clk 0:01:40.5]} 21... Qxg2+ {[%clk
0:01:26.8]} 22. Nxg2 {[%clk 0:01:40.1]} 22... Bxf6 {[%clk 0:01:24.9]} 23. Qxa7
{[%clk 0:01:34.5]} 1-0

[Event "*** Titled Tuesday Blitz"]
[Site "Chess.com"]
[Date "2021.03.30"]
[Round "1"]
[White "Maddie"]
[Black "anon481216"]
[Result "0-1"]
[WhiteElo "2061"]
[BlackElo "2499"]
[TimeControl "180+1"]
[EndTime "10:04:23 PDT"]
[Termination "anon481216 won by resignation"]

1. d4 {[%clk 0:02:58.9]} 1... d5 {[%clk 0:02:59.4]} 2. e3 {[%clk 0:02:58.2]}
2... Nf6 {[%clk 0:02:57.6]} 3. Bd3 {[%clk 0:02:58.2]} 3... Bg4 {[%clk
0:02:55.4]} 4. Nf3 {[%clk 0:02:57.2]} 4... c6 {[%clk 0:02:54.4]} 5. O-O {[%clk
0:02:57.5]} 5... Nbd7 {[%clk 0:02:52.8]} 6. Nbd2 {[%clk 0:02:57.5]} 6... e6
{[%clk 0:02:49.6]} 7. Qe1 {[%clk 0:02:53.7]} 7... Bd6 {[%clk 0:02:47]} 8. c3
{[%clk 0:02:52.6]} 8... O-O {[%clk 0:02:46.5]} 9. e4 {[%clk 0:02:48.5]} 9...
dxe4 {[%clk 0:02:37.2]} 10. Nxe4 {[%clk 0:02:48.5]} 10... Nxe4 {[%clk
0:02:34.7]} 11. Bxe4 {[%clk 0:02:48.1]} 11... Re8 {[%clk 0:02:28.6]} 12. h3
{[%clk 0:02:45.8]} 12... Bh5 {[%clk 0:02:27.8]} 13. Bc2 {[%clk 0:02:38.8]} 13...
e5 {[%clk 0:02:25.4]} 14. dxe5 {[%clk 0:02:37.2]} 14... Bxf3 {[%clk 0:02:21.8]}
15. gxf3 {[%clk 0:02:37.4]} 15... Nxe5 {[%clk 0:02:21.3]} 16. Qe4 {[%clk
0:02:35.4]} 16... Ng6 {[%clk 0:02:12.4]} 17. Qg4 {[%clk 0:02:34.7]} 17... Qf6
{[%clk 0:02:02.4]} 18. Bg5 {[%clk 0:02:29.8]} 18... Qe5 {[%clk 0:02:02.3]} 19.
Qg2 {[%clk 0:02:13]} 19... Nf4 {[%clk 0:01:59.4]} 20. Bxf4 {[%clk 0:02:12.4]}
20... Qxf4 {[%clk 0:01:59.5]} 21. Rad1 {[%clk 0:02:09.4]} 21... g6 {[%clk
0:01:58.8]} 22. Rd4 {[%clk 0:02:06.8]} 22... Qf6 {[%clk 0:01:58.2]} 23. Rfd1
{[%clk 0:02:03]} 23... Bc5 {[%clk 0:01:55.3]} 24. Rd7 {[%clk 0:01:57.8]} 24...
Re2 {[%clk 0:01:47.6]} 25. R7d2 {[%clk 0:01:50.8]} 25... Bxf2+ {[%clk
0:01:40.3]} 26. Qxf2 {[%clk 0:01:49.2]} 26... Rxf2 {[%clk 0:01:40.4]} 27. Kxf2
{[%clk 0:01:50.1]} 27... Re8 {[%clk 0:01:38.6]} 28. Bb3 {[%clk 0:01:49.4]} 28...
Qh4+ {[%clk 0:01:33.7]} 29. Kg2 {[%clk 0:01:48]} 29... Re5 {[%clk 0:01:30.8]}
30. Rd8+ {[%clk 0:01:36.6]} 30... Kg7 {[%clk 0:01:30.5]} 31. R1d2 {[%clk
0:01:33.2]} 31... Rg5+ {[%clk 0:01:29.8]} 32. Kh2 {[%clk 0:01:32.9]} 32... Qg3+
{[%clk 0:01:29.8]} 0-1

[Event "*** Titled Tuesday Blitz"]
[Site "Chess.com"]
[Date "2021.03.30"]
[Round "1"]
[White "GelmanAlexander"]
[Black "Triumphmate"]
[Result "1-0"]
[WhiteElo "2644"]
[BlackElo "2343"]
[TimeControl "180+1"]
[EndTime "10:04:29 PDT"]
[Termination "GelmanAlexander won by resignation"]

1. d4 {[%clk 0:03:00.9]} 1... d5 {[%clk 0:02:57.7]} 2. Nc3 {[%clk 0:03:00.4]}
2... f5 {[%clk 0:02:37.2]} 3. Bf4 {[%clk 0:02:58.1]} 3... e6 {[%clk 0:02:25.8]}
4. Nb5 {[%clk 0:02:50.8]} 4... Na6 {[%clk 0:01:53.6]} 5. e3 {[%clk 0:02:49.7]}
5... c6 {[%clk 0:01:39.5]} 6. Nc3 {[%clk 0:02:49.4]} 6... Bd6 {[%clk 0:01:38.7]}
7. Nf3 {[%clk 0:02:47.2]} 7... Nf6 {[%clk 0:01:37]} 8. Bd3 {[%clk 0:02:46.7]}
8... O-O {[%clk 0:01:34.4]} 9. O-O {[%clk 0:02:44.9]} 9... Nb4 {[%clk 0:01:34]}
10. Be2 {[%clk 0:02:41.7]} 10... Ne4 {[%clk 0:01:31.9]} 11. Nxe4 {[%clk
0:02:22.1]} 11... fxe4 {[%clk 0:01:31.7]} 12. Ne5 {[%clk 0:02:22]} 12... c5
{[%clk 0:01:26.6]} 13. c4 {[%clk 0:02:13.7]} 13... Nc6 {[%clk 0:01:21.3]} 14.
Bg3 {[%clk 0:01:55]} 14... Qc7 {[%clk 0:01:19.2]} 15. cxd5 {[%clk 0:01:33.6]}
15... Nxe5 {[%clk 0:01:12.1]} 16. dxe5 {[%clk 0:01:31.8]} 16... Bxe5 {[%clk
0:01:11.9]} 17. d6 {[%clk 0:01:19.6]} 1-0